Cogmind - Beta 16 *** ADVENTURER MODE // 2025.12.31 @ 12:46:26 Player: Mike Result: Self-destructed Performance ------------- Evolutions (1) 500 Regions Visited (2) 400 Robots Destroyed (13) 65 Value Destroyed (172) 172 Prototype IDs (2) 40 Alien Tech Used (0) 0 Bonus (0) 0 TOTAL SCORE: 1177 Bonus ------- None Cogmind --------- Core Integrity 364/400 Matter 300/300 Energy 100/100 System Corruption 2% Temperature Cool (0) Movement Flying (32) Location -9/Materials Parts ------- > --- POWER (1) -------- (None) > --- PROPULSION (3) --- Cesium-ion Thruster Cesium-ion Thruster > --- UTILITY (3) ------ Small Storage Unit Seismic Detector > --- WEAPON (2) ------- Mace Mace > --- INVENTORY (8) ---- Ion Engine Flight Unit Cesium-ion Thruster ECM Suite Light Assault Rifle Light Assault Rifle Peak State ------------ > --- POWER ------------ Light Ion Engine > --- PROPULSION ------- Cesium-ion Thruster Cesium-ion Thruster Cesium-ion Thruster > --- UTILITY ---------- Small Storage Unit Improved Terrain Scanner Seismic Detector > --- WEAPON ----------- Mace Mace > --- INVENTORY -------- Ion Engine Flight Unit Cesium-ion Thruster ECM Suite Light Assault Rifle Light Assault Rifle [Rating: 19] Favorites ----------- Power Light Ion Engine Engine Light Ion Engine Propulsion Aluminum Leg Leg Aluminum Leg Flight Unit Flight Unit Utility Small Storage Unit Device Improved Terrain Scanner Storage Small Storage Unit Weapon Light Assault Rifle Ballistic Gun Light Assault Rifle Impact Weapon Mace Build | -11 -10 -9 ------- Run | Yrd Mat Mat Slots Evolved 2 | . . 2 Power . | . . . Propulsion 1 | . . 1 Utility 1 | . . 1 Weapon . | . . . Parts Attached 16 | 9 2 5 Power 2 | 2 . . Engine 2 | 2 . . Core . | . . . Reactor . | . . . Propulsion 7 | 2 2 3 Treads . | . . . Leg 2 | 2 . . Wheel . | . . . Hover . | . . . Flight 5 | . 2 3 Utility 3 | 3 . . Device 2 | 2 . . Storage 1 | 1 . . Processor . | . . . Hackware . | . . . Protection . | . . . Artifact . | . . . Weapon 4 | 2 . 2 Energy Gun . | . . . Energy Cannon . | . . . Ballistic Gun 2 | 2 . . Ballistic Cannon . | . . . Launcher . | . . . Special Weapon . | . . . Impact Weapon 2 | . . 2 Slashing Weapon . | . . . Piercing Weapon . | . . . Special Melee Weapon . | . . . Unidentified Prototypes . | . . . Parts Lost 3 | . . 3 Power 1 | . . 1 Propulsion 1 | . . 1 Utility 1 | . . 1 Weapon . | . . . Highest Loss Streak 3 | . . 3 To Critical Strikes . | . . . Average Backups 3 | . 4 6 Power . | . 1 1 Propulsion . | . . 1 Utility 1 | . 1 1 Weapon 1 | . 1 2 Tool/Special . | . . . Unused Backups 4 | . 1 3 Power 1 | . . 1 Propulsion 1 | . . 1 Utility 1 | . . 1 Weapon 1 | . 1 . Tool/Special . | . . . Average Slot Usage (%) 79 | . 78 82 Engine 13 | . 14 11 Leg 9 | . 13 . Flight 18 | . 14 30 Device 8 | . 7 12 Storage 13 | . 14 11 Ballistic Gun 12 | . 14 7 Impact Weapon 2 | . . 11 Peak Build Rating 19 | 9 9 19 Average Rating 7 | 6 6 14 On Entrance 4 | . 9 5 Avg Prop Armor Cover (%) . | . . . Naked Turns . | . . . Heaviest Build 14 | 12 11 14 Greatest Support 20 | 20 20 15 Greatest Overweight (x) 2 | 1 2 . Average Overweight (x) . | . . . Largest Inventory Capacity 8 | 8 8 8 Average Capacity 7 | 7 8 8 Most Carried 8 | 2 8 8 Average Carried 3 | . 4 6 Final Capacity 8 | 8 8 8 Final Carried 8 | 2 8 6 Class Distribution -------------------- 85% | Mutant 14% | Sprinter Dominant Class ---------------- Mutant | -10/Materials Sprinter | -9/Materials Resources | -11 -10 -9 ----------- Run | Yrd Mat Mat Matter Collected 465 | 300 47 118 Remotely . | . . . Salvage Created 338 | 144 76 118 Parts 28 | 13 7 8 Haulers Intercepted . | . . . Recyclers Shooed 2 | 1 1 . Parts Field Recycled . | . . . Retrieved Matter . | . . . Parts Self-Destructed . | . . . Prevented . | . . . Parts Restored . | . . . Kills | -11 -10 -9 ------- Run | Yrd Mat Mat Combat Hostiles Destroyed 6 | . 3 3 Guns 6 | . 3 3 Classes Destroyed 6 | 2 3 1 Worker 1 | . 1 . Builder 1 | . 1 . Tunneler 4 | 4 . . Recycler 1 | 1 . . Swarmer 3 | . 3 . Grunt 3 | . . 3 Best Kill Streak 5 | 4 5 3 Combat Bots Only 3 | . 3 3 Max Kills in Single Turn 1 | 1 1 1 Gunslinging . | . . . Exploded . | . . . Melee . | . . . Uniques/NPCs Destroyed . | . . . Combat | -11 -10 -9 -------- Run | Yrd Mat Mat Hostile Shots Fired 24 | . 7 17 Missed 7 | . 2 5 Hits 17 | . 5 12 Melee 3 | . . 3 Projectile 14 | . 5 9 Critical Strikes 1 | . . 1 Damage Taken 168 | . 34 134 Core 36 | . . 36 Absorbed by Shields . | . . . Ignored by Resistances 49 | . 10 39 Core Remaining (%) 100 | 100 100 . Volleys Fired 29 | 10 10 9 Largest 2 | 2 2 2 Hottest 40 | 40 40 40 Shots Fired 58 | 20 20 18 Gun 58 | 20 20 18 Cannon . | . . . Launcher . | . . . Special . | . . . Kinetic 58 | 20 20 18 Thermal . | . . . Explosive . | . . . Electromagnetic . | . . . Robot Hit Streak 26 | 11 14 26 Robot Miss Streak 2 | 1 2 2 Penetration Max . | . . . Secondary Targets 2 | . 1 1 Max Gunslinging Chain 1 | . 1 1 Shots Hit Robots 50 | 17 16 17 Core Hits 24 | 9 8 7 Critical Kills . | . . . Critical Parts Destroyed . | . . . Critical Strikes . | . . . Melee Attacks 3 | . . 3 Impact 3 | . . 3 Slashing . | . . . Piercing . | . . . Sneak Attacks . | . . . Combat Hostiles . | . . . Follow-up Attacks . | . . . Damage Inflicted 430 | 143 127 160 Guns 384 | 143 127 114 Cannons . | . . . Explosions . | . . . Melee 46 | . . 46 Ramming . | . . . Kinetic 384 | 143 127 114 Thermal . | . . . Explosive . | . . . Electromagnetic . | . . . Impact 46 | . . 46 Slashing . | . . . Piercing . | . . . Highest Corruption 2 | . . 2 Average Corruption 1 | . . 1 Corruption Purged . | . . . Corruption Blocked . | . . . Overload Shots . | . . . Overflow Damage . | . . . Projectiles . | . . . Explosions . | . . . Melee . | . . . Knockbacks . | . . . Impact . | . . . Kinetic . | . . . Secondary . | . . . Self-Inflicted Damage . | . . . Shots . | . . . Rammed . | . . . Targets Rammed . | . . . Kicked . | . . . Crushed . | . . . Highest Temperature 18 | . . 18 Average Temperature 8 | . . 8 Received Heat Transfer 54 | . . 54 Siege Activations . | . . . Martial Activations . | . . . Shielding Activations . | . . . Robots Disrupted . | . . . Combat Hostiles . | . . . Robots Corrupted . | . . . Combat Hostiles . | . . . Parts Fried . | . . . Impact Corruptions . | . . . Robots Melted . | . . . Combat Hostiles . | . . . Parts Melted . | . . . Heat Transferred . | . . . Parts Sabotaged . | . . . Parts Stolen . | . . . Parts Stripped . | . . . Power Chain Reactions . | . . . Alert | -11 -10 -9 ------- Run | Yrd Mat Mat Maximum Alert Level . | . . . Low Security (%) 100 | 100 100 100 Level 1 . | . . . Level 2 . | . . . Level 3 . | . . . Level 4 . | . . . Level 5 . | . . . High Security . | . . . Max Security . | . . . Peak Influence 70 | 15 70 60 Initial . | . . . Average 16 | 1 18 31 Influence Increases 203 | 25 88 90 Destroy 0b10 Robot/C 120 | . 60 60 Destroy 0b10 Robot/NC 35 | 25 10 . Destroy Leader 10 | . 10 . Successful Hack 8 | . 8 . Lose Combat Pursuer 30 | . . 30 Influence Decreases 193 | 25 88 80 Time Decay 163 | 25 88 50 Lost Part 30 | . . 30 Squads Dispatched 1 | . 1 . Investigation 1 | . 1 . Extermination . | . . . Reinforcement . | . . . Assault . | . . . Garrison . | . . . Intercept . | . . . Searches Triggered . | . . . Construction Impeded . | . . . Haulers Reinforced . | . . . Active Scanning Responses . | . . . Cargo Convoy Interrupts . | . . . Stealth | -11 -10 -9 --------- Run | Yrd Mat Mat Distress Signals . | . . . Communications Jammed . | . . . Distress Signals . | . . . Times Spotted 14 | . 6 8 Peak Tracking Total 5 | . 3 5 Tactical Retreats 1 | . . 1 Traps | -11 -10 -9 ------- Run | Yrd Mat Mat Traps Triggered 1 | . 1 . Indirectly . | . . . Trap Hack Attempts . | . . . Triggered . | . . . Disarmed . | . . . Reprogrammed . | . . . Reused . | . . . Traps Extracted . | . . . Installed . | . . . Triggered . | . . . Machines | -11 -10 -9 ---------- Run | Yrd Mat Mat Machines Disabled . | . . . Max in Single Turn . | . . . Machines Repaired . | . . . Machines Dismantled . | . . . Machines Sabotaged . | . . . Overloaded Fab Kills . | . . . Hacking | -11 -10 -9 --------- Run | Yrd Mat Mat Machines Accessed 4 | . 3 1 Terminals 4 | . 3 1 Fabricators . | . . . Repair Stations . | . . . Recycling Units . | . . . Scanalyzers . | . . . Garrison Access . | . . . Total Hacks 14 | . 11 3 Successful 8 | . 5 3 Failed 6 | . 6 . Catastrophic 2 | . 2 . Database Lockouts . | . . . Manual 2 | . 2 . Terminals 14 | . 11 3 Fabricators . | . . . Repair Stations . | . . . Recycling Units . | . . . Scanalyzers . | . . . Garrison Access . | . . . Terminal Hacks 8 | . 5 3 Prototype ID Bank 1 | . 1 . Level Access Points 1 | . 1 . Branch Access Points 1 | . 1 . Locate Traps 2 | . 1 1 Maintenance Status 1 | . . 1 Investigation Status 1 | . 1 . Registered Components 1 | . . 1 Fabricator Hacks . | . . . Repair Station Hacks . | . . . Recycling Unit Hacks . | . . . Scanalyzer . | . . . Garrison Access Hacks . | . . . Unauthorized Hacks . | . . . Terminals . | . . . Fabricators . | . . . Repair Stations . | . . . Recycling Units . | . . . Scanalyzers . | . . . Garrison Access . | . . . Data Cores Recovered . | . . . Used . | . . . Hacking Detections 3 | . 3 . Full Trace Events . | . . . Feedback Events . | . . . Feedback Blocked . | . . . Robot Schematics Acquired . | . . . Robots Built . | . . . Authchips . | . . . Time . | . . . Total Robot Build Rating . | . . . Part Schematics Acquired . | . . . Parts Built . | . . . Authchips . | . . . Time . | . . . Total Part Build Rating . | . . . Part Studies Acquired . | . . . Parts Repaired . | . . . Time . | . . . Parts Recycled . | . . . Recycled Matter . | . . . Retrieved Matter . | . . . Retrieved Components . | . . . Parts Scanalyzed . | . . . Part Schematics Acquired . | . . . Parts Damaged . | . . . Bothacking | -11 -10 -9 ------------ Run | Yrd Mat Mat Used RIF Installer . | . . . Robots Hacked . | . . . Non-combat . | . . . Combat . | . . . Robot Hacks Applied . | . . . Relay Couplers Released . | . . . Fabnet Peak Effective % . | . . . Robots Rewired . | . . . Allies Hacked . | . . . Hacks Repelled . | . . . Allies | -11 -10 -9 -------- Run | Yrd Mat Mat Total Allies . | . . . Largest Group . | . . . Highest-Rated Group . | . . . Highest-Rated Ally . | . . . Total Orders . | . . . Ally Attacks . | . . . Total Damage . | . . . Kills . | . . . Allies Corrupted . | . . . Allies Melted . | . . . Intel | -11 -10 -9 ------- Run | Yrd Mat Mat Active Infowar (turns) 302 | 77 166 59 Terrain 238 | 18 166 54 Seismic 118 | 59 . 59 Robot Analysis Total . | . . . Derelict Logs Recovered . | . . . Drone Launches . | . . . Drone Recoveries . | . . . Exploration | -11 -10 -9 ------------- Run | Yrd Mat Mat Turns Passed 605 | 168 337 100 Spaces Moved 643 | 110 441 92 Core 9 | 9 . . Treads . | . . . Legs 209 | 101 108 . Wheels . | . . . Hover . | . . . Flight 425 | . 333 92 Fastest Speed 29 | 50 37 29 Average Speed 64 | 116 58 31 Slowest Speed 200 | 120 200 37 Overloaded Moves . | . . . Propulsion Burnouts . | . . . Robots Hopped 1 | . 1 . Potential Cave-ins . | . . . Cave-ins Triggered . | . . . Exploration Rate (%) 21 | 5 50 10 Regions Visited 2 Branch Regions . Pre-discovered Areas . | . . . Known Exits Taken 1 | . 1 . Unknown Exits Taken 1 | 1 . . Scrap Searched . | . . . Spaces Dug . | . . . Terrain Destroyed . | . . . Melee . | . . . Projectile . | . . . AOE . | . . . Terrain Rammed . | . . . Walls Destroyed . | . . . Machines Disabled . | . . . Actions | -11 -10 -9 --------- Run | Yrd Mat Mat Total 780 | 131 506 143 Wait 70 | . 44 26 Move 639 | 109 438 92 Hop 1 | . 1 . Pick Up 7 | 1 5 1 Fast Attach 11 | 9 1 1 Attach 6 | . 1 5 Detach 5 | 1 3 1 Swap 4 | . . 4 Drop 5 | 1 3 1 Fire 29 | 10 10 9 Melee 3 | . . 3 Ram . | . . . Kick . | . . . Crush . | . . . Escape Stasis . | . . . Rewire . | . . . Trap . | . . . Miscellaneous . | . . . Route ------- -11/Scrapyard -10/Materials (discovered 5 exits: *Mat x3 / *Min x2) -9/Materials History --------- Turn | Location | Event 7 | -11/Scrapyard | Discovered new exit (range 16) 169 | -11/Scrapyard | Entered Materials 270 | -10/Materials | Identified exit to Materials 305 | -10/Materials | Build established: Mutant 425 | -10/Materials | Identified exit to Mines 506 | -10/Materials | Entered another Materials area 506 | -9/Materials | Evolved 2 slots: Propulsion x1, Utility x1 606 | -9/Materials | Self-destructed Last Messages --------------- Found 24 registered maintenance bots. 15 Workers 5 Builders 1 Tunneler 3 Recyclers Downloaded coordinate data. 00516_ Acquired Cesium-ion Thruster. 00520_ G-34 Mercenary destroyed. 00527_ Switching to secondary target: G-34 Mercenary. 00540_ G-34 Mercenary destroyed. 00547_ Dropped Flight Unit. 00547_ Acquired Cesium-ion Thruster. 00559_ Acquired 48 matter. 00560_ Acquired 70 matter. 00599_ Cesium-ion Thruster destroyed. 00599_ System corrupted by crushing effect (+1). 00602_ Imp. Terrain Scanner destroyed. 00604_ Lgt. Ion Engine destroyed. 00604_ System corrupted by crushing effect (+1). Map ----- +----------------------------------------------------+ | ??????????????## ## #??? | | ???????????????# #??? | | ???????????????# T #??? | | ????????######## #??? | | ????????# # ### #??? | | ????????# # #?## ##??? | | ????????# """ # #??# #???? | | ????????# """ +^ #??# #???? | | ????????# """ #[= #??# #???? | | ????????# #= = #??# #???? | | ????????######## [* #??# #???? | | ??????????????#** #??# #??#? | | ???????^??? ^ #??# #???? | | ??????? #??# #???? | | ??^ !! #??# #???? | | ?^ ^ ^ !! #??# #???? | | ??? !! #??# #???? | | ??? #??# #???? | | ??? #??# ##??? | | ???? ! #??## ##???? | | ????############ #???# #?#??? | | ???????????????# #???# #????# | | ???????????????# ##### #????? | | ??????????????## b #????? | | ??????????????## ##b####?? | | ???????????????# !!! ?# @ #? | | ???????????????? !!!??# """ =#? | | ???????????????# !????# """ #? | | ??????????????# ?????# """ #? | | ??????????????+ ??????# #? | | ??????????????#????????########? | | ???????????????????????????????? | | ???????????????????????????????? | | ??????????????#????????????????? | | ???????????????????????????????? | | ???????????????????????????????? | | ???????????????????????????????? | | ???????????????????????????????? | | ??????????????????#????????????? | | ????????????????????????????#??? | | ??????????????????????????????#? | | ???????????????????????????????? | | ?????????????????????*?????????? | | ???????????????????????????????? | | ???????????????????????????????? | | ???????????????????????????????? | | ????!??????????????????????????? | | ???????????????????????????????? | | ???????????????????????????????? | | ???????????????????????????????? | +----------------------------------------------------+ Best States ------------- Heat Dissipation 28 Energy Generation 10 Energy Capacity 250 Matter Stores 300 Matter Capacity 300 Sight Range 16 Terrain Scan Range 16 Terrain Scan Density 10 Resistance: KI 20 Resistance: TH 20 Resistance: EX 20 Resistance: EM 20 Resistance: I 20 Resistance: S 20 Resistance: P 20 Evasion (%) 64 Offensive Hacking 10 Item Schematics ----------------- None Robot Schematics ------------------ None Fabricated ------------ Nothing Repaired ---------- Nothing Studied --------- None Alien Tech Used ----------------- None Achievements -------------- None Challenges ------------ None Game ------ Seed PotentialSystemSegregator Manual? 0 Play Time 00:14:21 Cumulative 18.2 hours Start 2025.12.31 @ 12:14:46 End 2025.12.31 @ 12:46:26 Sessions 1 Manual Loads 0 Difficulty Adventurer Special Mode None Game No. 13 Rogue 0 Adventurer 3 Explorer 10 Win Type - Total 0 Types 0/0/0/0/0/0/0/0/0/0 Lore% 2 Gallery% 13 Achievement% 15 Wizard Run 0 Options --------- Layout 2 ASCII 0 Keyboard 0 Movement Arrows Keybinds 0 Fullscreen 1 Font 16/SmallcapsGlow Map View 50x49 Zoom Use 32% Tactical HUD 1 Map Filters NONE Filters NONE Steam SD RUN: c1df03c9-3f10-4db0-a55d-9b2cff2b550f